Cogmind - Beta 16 --- EXPLORER MODE // 2026.01.09 @ 14:23:29 Player: K.K.Y. Result: Smashed by cave-in Performance ------------- Evolutions (4) 2000 Regions Visited (6) 1200 Robots Destroyed (131) 655 Value Destroyed (4470) 4470 Prototype IDs (23) 460 Alien Tech Used (0) 0 Bonus (1514) 1514 TOTAL SCORE: 10299 Bonus ------- Follower Combat Kills 65 Delivered SUBCON Basin 2000 Friendly Fire -551 Cogmind --------- Core Integrity 0/850 Matter 195/300 Energy 150/150 System Corruption 18% Temperature Cool (0) Movement Walking (260) Ox2 Location -6/Factory Parts ------- > --- POWER (2) -------- Light Angular Momentum Engine > --- PROPULSION (4) --- Carbon-fiber Leg Carbon-fiber Leg Carbon-fiber Leg > --- UTILITY (8) ------ Huge Storage Unit Layered Medium Armor Plating Graphene Brace > --- WEAPON (2) ------- Heavy Flak Cannon Impact Mace > --- INVENTORY (25) --- Micro Nuclear Core Armored Huge Wheel Improved Heat Sink Improved Cooling System Large Storage Unit Light Humpback Humpback Improved Trap Scanner Improved Signal Interpreter Improved Light Armor Plating Improved Hacking Suite Makeshift System Shield Authchip [Device] Authchip [Armor] Tech Extrapolator Improved System Restoration Module Heavy Laser Heavy Machine Gun Dirty Datajack (20) Mining Laser Plasma Cutter Multitool Peak State ------------ > --- POWER ------------ Light Angular Momentum Engine F-cell Engine > --- PROPULSION ------- Multireflex Exoskeleton Cargo Legs > --- UTILITY ---------- Improved Cooling System Huge Storage Unit Advanced Terrain Scanner Layered Medium Armor Plating Thermal Defense Suite Force Field System Shield Component Analysis Suite > --- WEAPON ----------- Cooled Pulse Rifle Thermic Laser > --- INVENTORY -------- Armored Huge Wheel Large Storage Unit Light Humpback Humpback Improved Trap Scanner Improved Signal Interpreter Makeshift ECM Suite Layered Medium Armor Plating Improved Hacking Suite Makeshift System Shield Authchip [Device] Authchip [Armor] Tech Extrapolator Improved Dynamic Insulation System Gauss Rifle Heavy Machine Gun Gauss Cannon Dirty Datajack Mining Laser Plasma Cutter Multitool Makeshift Spear [Rating: 90] Favorites ----------- Power Heavy Ion Engine Engine Heavy Ion Engine Power Core Fission Core Propulsion Light Treads Treads Light Treads Leg Cargo Legs Utility Improved Heat Sink Device Improved Heat Sink Storage Large Storage Unit Hackware System Shield Protection Improved Medium Armor Plating Weapon Particle Cannon Energy Gun Cooled Pulse Rifle Energy Cannon Particle Cannon Ballistic Gun Makeshift Shrapnel Gun Ballistic Cannon Slug Cannon Special Weapon Mining Laser Impact Weapon Impact Mace Piercing Weapon Makeshift Spear Build | -11 -10 -10 -10 -8 -8 -6 ------- Run | Yrd Mat Min Sub Rec Scr Fac Slots Evolved 9 | . 1 . . . . 8 Power 1 | . . . . . . 1 Propulsion 2 | . . . . . . 2 Utility 6 | . 1 . . . . 5 Weapon . | . . . . . . . Parts Attached 89 | 7 7 . 14 3 4 54 Power 12 | 1 1 . 3 . 1 6 Engine 10 | 1 1 . 3 . . 5 Core 2 | . . . . . 1 1 Reactor . | . . . . . . . Propulsion 17 | 2 . . 2 . . 13 Treads 7 | 2 . . 1 . . 4 Leg 10 | . . . 1 . . 9 Wheel . | . . . . . . . Hover . | . . . . . . . Flight . | . . . . . . . Utility 34 | 2 2 . 5 3 1 21 Device 23 | 1 1 . 2 . 1 18 Storage 5 | 1 1 . 2 1 . . Processor . | . . . . . . . Hackware 2 | . . . . 2 . . Protection 4 | . . . 1 . . 3 Artifact . | . . . . . . . Weapon 26 | 2 4 . 4 . 2 14 Energy Gun 4 | . . . . . . 4 Energy Cannon 5 | . 2 . 2 . . 1 Ballistic Gun 7 | 2 . . 1 . 1 3 Ballistic Cannon 6 | . . . 1 . 1 4 Launcher . | . . . . . . . Special Weapon 2 | . 2 . . . . . Impact Weapon 1 | . . . . . . 1 Slashing Weapon . | . . . . . . . Piercing Weapon 1 | . . . . . . 1 Special Melee Weapon . | . . . . . . . Unidentified Prototypes 10 | . 1 . . . . 9 Parts Lost 30 | . . . 4 . . 26 Power 5 | . . . . . . 5 Propulsion 6 | . . . . . . 6 Utility 13 | . . . 2 . . 11 Weapon 6 | . . . 2 . . 4 Highest Loss Streak 7 | . . . 1 . . 7 To Critical Strikes . | . . . . . . . Average Backups 16 | 2 10 12 13 19 23 22 Power 1 | . 2 3 2 1 1 . Propulsion . | . 2 2 . . . . Utility 8 | 1 2 4 6 11 14 13 Weapon 3 | . 2 3 3 4 5 4 Tool/Special . | . . . . . . . Unused Backups 44 | . . . 9 6 3 26 Power 3 | . . . 1 . 1 1 Propulsion 3 | . . . 2 . . 1 Utility 22 | . . . 1 6 . 15 Weapon 13 | . . . 5 . 2 6 Tool/Special 3 | . . . . . . 3 Average Slot Usage (%) 87 | . 97 100 86 77 88 82 Engine 9 | . 11 12 11 11 10 4 Core 1 | . . . . . . 5 Treads 9 | . 25 25 6 . . 4 Leg 6 | . . . 7 11 11 9 Device 24 | . 22 25 25 19 13 29 Storage 9 | . 11 12 11 11 11 5 Hackware 3 | . . . . 2 19 4 Protection 1 | . . . . . . 4 Energy Cannon 10 | . 23 25 17 . . 1 Ballistic Gun 3 | . . . 2 11 11 2 Ballistic Cannon 4 | . . . 2 11 11 4 Peak Build Rating 90 | 6 14 14 54 56 47 90 Average Rating 41 | 5 13 14 31 52 45 70 On Entrance 25 | . 6 14 14 54 45 47 Avg Prop Armor Cover (%) 3 | . . . . . . 3 Naked Turns . | . . . . . . . Heaviest Build 219 | 9 38 38 219 219 102 137 Greatest Support 95 | 40 40 40 55 55 55 95 Greatest Overweight (x) 38 | . . . 3 3 1 38 Average Overweight (x) . | . . . . 2 1 1 Largest Inventory Capacity 35 | 10 15 15 35 35 25 25 Average Capacity 21 | 5 14 15 18 33 25 25 Most Carried 35 | 5 12 13 31 35 25 25 Average Carried 20 | 3 10 12 17 31 24 24 Final Capacity 35 | 5 15 15 35 25 25 25 Final Carried 30 | 5 11 13 30 25 25 25 Class Distribution -------------------- 80% | Hacker-Mutant 14% | Hauler-Mutant Dominant Class ---------------- Hacker-Mutant | -10/Materials Hacker-Mutant | -10/Mines Hacker-Mutant | -10/Subcaves Hauler-Mutant | -8/Recycling Hacker-Mutant | -8/Scraptown Hacker-Mutant | -6/Factory Resources | -11 -10 -10 -10 -8 -8 -6 ----------- Run | Yrd Mat Min Sub Rec Scr Fac Matter Collected 2994 | 302 122 10 160 107 30 2263 Remotely . | . . . . . . . Salvage Created 4848 | 125 356 99 879 177 . 3212 Parts 255 | 12 35 3 45 10 . 150 Haulers Intercepted 6 | . 2 . . . . 4 Recyclers Shooed 5 | . . . . . . 5 Parts Field Recycled . | . . . . . . . Retrieved Matter . | . . . . . . . Parts Self-Destructed . | . . . . . . . Prevented . | . . . . . . . Parts Restored . | . . . . . . . Kills | -11 -10 -10 -10 -8 -8 -6 ------- Run | Yrd Mat Min Sub Rec Scr Fac Combat Hostiles Destroyed 95 | . 8 2 19 4 . 62 Melee 3 | . . . . . . 3 Guns 35 | . . . . 4 . 31 Cannons 55 | . 8 2 18 . . 27 Classes Destroyed 19 | 2 6 . 5 . . 6 Worker 7 | . 1 . . . . 6 Builder 1 | . 1 . . . . . Tunneler 3 | 3 . . . . . . Hauler 6 | . 2 . . . . 4 Recycler 3 | 1 . . . . . 2 Mechanic 3 | . . . . . . 3 Operator 1 | . . . . . . 1 Turret 2 | . . . 2 . . . Watcher 8 | . 3 . . . . 5 Swarmer 27 | . 6 1 3 . . 17 Grunt 26 | . 2 1 . . . 23 Sentry 9 | . . . 1 4 . 4 Specialist 2 | . . . . . . 2 Hunter 2 | . . . . . . 2 Programmer 13 | . . . . . . 13 Heavy 1 | . . . . . . 1 Artisan 1 | . . . 1 . . . Subdweller 15 | . . . 15 . . . Zionite 1 | . . . 1 . . . Thug 1 | . . 1 . . . . Best Kill Streak 10 | 3 5 1 3 1 . 10 Combat Bots Only 5 | . 3 1 3 1 . 5 Max Kills in Single Turn 2 | 1 2 1 1 1 . 2 Gunslinging . | . . . . . . . Exploded . | . . . . . . . Melee 1 | . . . . . . 1 Uniques/NPCs Destroyed . | . . . . . . . Combat | -11 -10 -10 -10 -8 -8 -6 -------- Run | Yrd Mat Min Sub Rec Scr Fac Hostile Shots Fired 1071 | . 23 13 167 8 . 860 Missed 353 | . 7 3 60 1 . 282 Hits 718 | . 16 10 107 7 . 578 Melee 1 | . . . . . . 1 Projectile 717 | . 16 10 107 7 . 577 AOE 4 | . . . . . . 4 Critical Strikes 21 | . . . 5 . . 16 Actively Blocked 8 | . . . . . . 8 Part Disruptions 3 | . . . . . . 3 Damage Taken 6664 | . 125 83 983 64 . 5409 Core 1030 | . 7 16 136 9 . 862 Absorbed by Shields 755 | . . . . . . 755 Ignored by Resistances 4529 | . 82 55 573 39 . 3780 Regen/Repaired (Parts) 381 | . . . . . 381 . Core Remaining (%) 66 | 100 . . . . 32 . Volleys Fired 498 | 8 37 14 157 7 . 275 Largest 2 | 2 2 2 2 2 . 2 Hottest 168 | 40 168 136 136 64 . 105 Shots Fired 920 | 16 74 27 309 14 . 480 Gun 305 | 16 6 . . 7 . 276 Cannon 606 | . 59 27 309 7 . 204 Launcher . | . . . . . . . Special 9 | . 9 . . . . . Kinetic 332 | 16 6 . . 14 . 296 Thermal 531 | . 68 27 309 . . 127 Explosive . | . . . . . . . Electromagnetic 57 | . . . . . . 57 Robot Hit Streak 48 | 7 22 16 25 21 . 48 Robot Miss Streak 3 | 1 3 1 2 1 . 2 Penetration Max 1 | . . . . . . 1 Secondary Targets 2 | . . . . . . 2 Max Gunslinging Chain 1 | . . . . . . 1 Shots Hit Robots 622 | 12 40 23 127 10 . 410 Core Hits 239 | 5 16 5 36 8 . 169 Critical Kills 1 | . . . 1 . . . Critical Parts Destroyed 2 | . . . . 2 . . Critical Strikes 34 | . . . 1 2 . 31 Burn 8 | . . . . . . 8 Meltdown 1 | . . . 1 . . . Destroy 2 | . . . . 2 . . Blast 18 | . . . . . . 18 Corrupt 3 | . . . . . . 3 Impale 2 | . . . . . . 2 Melee Attacks 20 | . . . . . . 20 Impact 8 | . . . . . . 8 Slashing . | . . . . . . . Piercing 12 | . . . . . . 12 Sneak Attacks . | . . . . . . . Combat Hostiles . | . . . . . . . Follow-up Attacks . | . . . . . . . Damage Inflicted 14348 | 125 773 496 2588 291 . 10075 Guns 5404 | 125 57 . . 184 . 5038 Cannons 8599 | . 716 496 2588 107 . 4692 Explosions 65 | . . . . . . 65 Melee 266 | . . . . . . 266 Ramming 14 | . . . . . . 14 Kinetic 6853 | 125 57 . . 291 . 6380 Thermal 6195 | . 716 496 2588 . . 2395 Explosive . | . . . . . . . Electromagnetic 1020 | . . . . . . 1020 Impact . | . . . . . . . Slashing . | . . . . . . . Piercing 266 | . . . . . . 266 Highest Corruption 15 | . . . . . . 15 Average Corruption 5 | . . . . . . 5 Corruption Purged . | . . . . . . . Corruption Blocked . | . . . . . . . Effects 113 | . . . . . . 113 Message Errors 24 | . . . . . . 24 Matter Fused 29 | . . . . . . 29 Heat Flow Errors 14 | . . . . . . 14 Energy Discharges 18 | . . . . . . 18 Parts Rejected 2 | . . . . . . 2 Parts Fused 2 | . . . . . . 2 Data Loss (minor) 8 | . . . . . . 8 Data Loss (major) 3 | . . . . . . 3 Misfires 5 | . . . . . . 5 Alerts 2 | . . . . . . 2 Misdirections 1 | . . . . . . 1 Weapon Failures 5 | . . . . . . 5 Overload Shots . | . . . . . . . Overflow Damage 331 | . 3 3 29 . . 296 Projectiles 305 | . 3 3 29 . . 270 Explosions 5 | . . . . . . 5 Melee 21 | . . . . . . 21 Knockbacks 40 | . . . . . . 40 Impact . | . . . . . . . Kinetic 39 | . . . . . . 39 Secondary 1 | . . . . . . 1 Self-Inflicted Damage . | . . . . . . . Shots . | . . . . . . . Rammed . | . . . . . . . Targets Rammed 2 | . . . . . . 2 Kicked 2 | . . . . . . 2 Crushed . | . . . . . . . Highest Temperature 415 | . 276 415 191 . . 402 Average Temperature 93 | . 88 181 53 . . 90 Received Heat Transfer 1952 | . 18 60 490 45 . 1339 Effects 4 | . . 3 . . . 1 Shutdowns 1 | . . 1 . . . . Interference 2 | . . 2 . . . . Damage (minor) 1 | . . . . . . 1 Siege Activations . | . . . . . . . Martial Activations . | . . . . . . . Shielding Activations . | . . . . . . . Robots Disrupted . | . . . . . . . Combat Hostiles . | . . . . . . . Robots Corrupted 2 | . . . . . . 2 Combat Hostiles 1 | . . . . . . 1 Parts Fried 6 | . . . . . . 6 Impact Corruptions . | . . . . . . . Robots Melted 1 | . . . 1 . . . Combat Hostiles 1 | . . . 1 . . . Parts Melted 18 | . 1 . 8 . . 9 Heat Transferred 12085 | . 1295 888 4662 . . 5240 Parts Sabotaged 4 | . . . . . . 4 Parts Stolen . | . . . . . . . Parts Stripped . | . . . . . . . Power Chain Reactions 1 | . . . . . . 1 Alert | -11 -10 -10 -10 -8 -8 -6 ------- Run | Yrd Mat Min Sub Rec Scr Fac Maximum Alert Level . | . . . . . . . Low Security (%) 100 | 100 100 100 . 100 . 100 Level 1 . | . . . . . . . Level 2 . | . . . . . . . Level 3 . | . . . . . . . Level 4 . | . . . . . . . Level 5 . | . . . . . . . High Security . | . . . . . . . Max Security . | . . . . . . . Peak Influence 161 | 5 63 51 . 21 . 161 Initial . | . . . . . . . Average 8 | . 1 2 . . . 19 Influence Increases 2782 | 20 261 87 240 91 . 2083 Destroy 0b10 Robot/C 1660 | . 160 60 120 80 . 1240 Destroy 0b10 Robot/NC 160 | 20 35 . . . . 105 Destroy Leader 406 | . 50 10 . . . 346 Allied During Kill 2 | . . 2 . . . . Successful Hack 68 | . 1 . . 8 . 59 Disable Machine 20 | . 4 . . . . 16 Destroy Structure 46 | . 11 . . 3 . 32 Lose Combat Pursuer 420 | . . 15 120 . . 285 Influence Decreases 2782 | 20 261 87 240 91 . 2083 Time Decay 2666 | 20 261 87 230 91 . 1977 Lost Part 116 | . . . 10 . . 106 Squads Dispatched 22 | . 1 . . . . 21 Investigation 3 | . 1 . . . . 2 Extermination 10 | . . . . . . 10 Reinforcement 9 | . . . . . . 9 Assault . | . . . . . . . Garrison . | . . . . . . . Intercept . | . . . . . . . Searches Triggered . | . . . . . . . Construction Impeded 2 | . . . . . . 2 Haulers Reinforced 2 | . . . . . . 2 Active Scanning Responses . | . . . . . . . Cargo Convoy Interrupts 1 | . . . . . . 1 Stealth | -11 -10 -10 -10 -8 -8 -6 --------- Run | Yrd Mat Min Sub Rec Scr Fac Distress Signals 4 | . . . . . . 4 Communications Jammed . | . . . . . . . Distress Signals . | . . . . . . . Times Spotted 148 | . 11 4 26 3 . 104 Peak Tracking Total 6 | . 2 2 5 1 . 6 Tactical Retreats 23 | . . 1 4 . . 18 ECM-based Alert Blocks 1 | . . . . . . 1 Traps | -11 -10 -10 -10 -8 -8 -6 ------- Run | Yrd Mat Min Sub Rec Scr Fac Traps Triggered 6 | . 2 . 1 . . 3 Indirectly . | . . . . . . . Trap Hack Attempts . | . . . . . . . Triggered . | . . . . . . . Disarmed . | . . . . . . . Reprogrammed . | . . . . . . . Reused . | . . . . . . . Traps Extracted . | . . . . . . . Installed . | . . . . . . . Triggered . | . . . . . . . Machines | -11 -10 -10 -10 -8 -8 -6 ---------- Run | Yrd Mat Min Sub Rec Scr Fac Machines Disabled 8 | . 1 . 3 . . 4 Max in Single Turn 1 | . 1 . 1 . . 1 Garrison Access 1 | . . . . . . 1 Machines Repaired . | . . . . . . . Machines Dismantled . | . . . . . . . Machines Sabotaged . | . . . . . . . Overloaded Fab Kills . | . . . . . . . Hacking | -11 -10 -10 -10 -8 -8 -6 --------- Run | Yrd Mat Min Sub Rec Scr Fac Machines Accessed 39 | . 9 . 4 14 . 12 Terminals 21 | . 7 . . 6 . 8 Fabricators 1 | . . . . . . 1 Repair Stations 3 | . 1 . . . . 2 Recycling Units 9 | . 1 . . 8 . . Scanalyzers . | . . . . . . . Garrison Access 1 | . . . . . . 1 Total Hacks 87 | . 15 . 9 40 . 23 Successful 59 | . 12 . 9 24 . 14 Failed 28 | . 3 . . 16 . 9 Catastrophic 2 | . . . . . . 2 Database Lockouts . | . . . . . . . Manual 47 | . 14 . . 21 . 12 Terminals 46 | . 11 . . 20 . 15 Fabricators 1 | . . . . . . 1 Repair Stations 5 | . 1 . . . . 4 Recycling Units 23 | . 3 . . 20 . . Scanalyzers . | . . . . . . . Garrison Access 3 | . . . . . . 3 Terminal Hacks 17 | . 1 . 9 3 . 4 Record 7 | . . . 6 . . 1 Part Schematic 3 | . . . . 1 . 2 Robot Schematic 2 | . . . . 1 . 1 Robot Analysis 1 | . 1 . . . . . Prototype ID Bank 1 | . . . . 1 . . Open Door 1 | . . . 1 . . . Proto ID Catalog 1 | . . . 1 . . . Release Object 1 | . . . 1 . . . Fabricator Hacks . | . . . . . . . Repair Station Hacks 2 | . . . . . . 2 Scan Component 1 | . . . . . . 1 Repair 1 | . . . . . . 1 Recycling Unit Hacks 8 | . 1 . . 7 . . Retrieve Components 8 | . 1 . . 7 . . Scanalyzer . | . . . . . . . Garrison Access Hacks 1 | . . . . . . 1 Seal Access 1 | . . . . . . 1 Unauthorized Hacks 30 | . 10 . . 13 . 7 Terminals 19 | . 9 . . 5 . 5 Track 1 | . 1 . . . . . Botnet 17 | . 7 . . 5 . 5 Detonate 1 | . 1 . . . . . Fabricators 1 | . . . . . . 1 Fabnet 1 | . . . . . . 1 Repair Stations 2 | . 1 . . . . 1 Mechanics 2 | . 1 . . . . 1 Recycling Units 8 | . . . . 8 . . Reject 8 | . . . . 8 . . Scanalyzers . | . . . . . . . Garrison Access . | . . . . . . . Data Cores Recovered . | . . . . . . . Used . | . . . . . . . Hacking Detections 24 | . 5 . . 11 . 8 Full Trace Events 10 | . 1 . . 7 . 2 Feedback Events . | . . . . . . . Feedback Blocked . | . . . . . . . Robot Schematics Acquired 2 | . . . . 1 . 1 Robots Built . | . . . . . . . Authchips . | . . . . . . . Time . | . . . . . . . Total Robot Build Rating . | . . . . . . . Part Schematics Acquired 3 | . . . . 1 . 2 Parts Built . | . . . . . . . Authchips . | . . . . . . . Time . | . . . . . . . Total Part Build Rating . | . . . . . . . Part Studies Acquired . | . . . . . . . Parts Repaired . | . . . . . . . Time 38 | . . . . . . 38 Parts Recycled . | . . . . . . . Recycled Matter . | . . . . . . . Retrieved Matter . | . . . . . . . Retrieved Components 22 | . 10 . . 12 . . Parts Scanalyzed . | . . . . . . . Part Schematics Acquired . | . . . . . . . Parts Damaged . | . . . . . . . Bothacking | -11 -10 -10 -10 -8 -8 -6 ------------ Run | Yrd Mat Min Sub Rec Scr Fac Used RIF Installer . | . . . . . . . Robots Hacked . | . . . . . . . Non-combat . | . . . . . . . Combat . | . . . . . . . Robot Hacks Applied . | . . . . . . . Relay Couplers Released 4 | . . . . . . 4 Programmers 4 | . . . . . . 4 Fabnet Peak Effective % . | . . . . . . . Robots Rewired . | . . . . . . . Allies Hacked . | . . . . . . . Hacks Repelled . | . . . . . . . Allies | -11 -10 -10 -10 -8 -8 -6 -------- Run | Yrd Mat Min Sub Rec Scr Fac Total Allies 3 | . . 3 . . . . Largest Group 3 | . . 3 2 . . . Highest-Rated Group 40 | . . 40 32 . . . Highest-Rated Ally 16 | . . 16 16 . . . Total Orders . | . . . . . . . Ally Attacks 27 | . . 14 13 . . . Total Damage 310 | . . 142 168 . . . Kills 3 | . . 2 1 . . . Allies Corrupted . | . . . . . . . Allies Melted 1 | . . . . . . 1 Intel | -11 -10 -10 -10 -8 -8 -6 ------- Run | Yrd Mat Min Sub Rec Scr Fac Active Infowar (turns) 15811 | 142 4210 1218 4193 2025 . 4023 Sensors 8666 | 142 4210 1218 3096 . . . Terrain 4083 | . . . 400 . . 3683 Structural 11352 | . 3565 1199 4193 2025 . 370 ECM 340 | . . . . . . 340 Robot Analysis Total 1 | . 1 . . . . . Derelict Logs Recovered 4 | . . 2 2 . . . Drone Launches . | . . . . . . . Drone Recoveries . | . . . . . . . Exploration | -11 -10 -10 -10 -8 -8 -6 ------------- Run | Yrd Mat Min Sub Rec Scr Fac Turns Passed 20287 | 161 4210 1218 4814 2509 1515 5860 Spaces Moved 7970 | 86 1144 680 2638 823 754 1845 Core 33 | 24 . . . . . 9 Treads 2957 | 62 1144 680 687 . . 384 Legs 4980 | . . . 1951 823 754 1452 Wheels . | . . . . . . . Hover . | . . . . . . . Flight . | . . . . . . . Fastest Speed 50 | 50 160 160 130 200 200 190 Average Speed 196 | 129 160 160 160 299 200 240 Slowest Speed 1950 | 160 160 160 340 340 200 1950 Overloaded Moves . | . . . . . . . Propulsion Burnouts . | . . . . . . . Robots Hopped . | . . . . . . . Potential Cave-ins 1 | . . . . . . 1 Cave-ins Triggered 4 | . . . . . . 4 Exploration Rate (%) 70 | 5 100 99 97 99 47 47 Regions Visited 6 Branch Regions 4 Pre-discovered Areas 2 | . . 1 1 . . . Known Exits Taken 6 | 1 1 1 1 1 1 . Unknown Exits Taken . | . . . . . . . Scrap Searched 11 | . . 1 7 . 3 . Spaces Dug 41 | . 9 . 24 . . 8 Terrain Destroyed 67 | . 9 . 25 3 . 30 Melee 8 | . . . . . . 8 Projectile 52 | . 9 . 25 3 . 15 AOE 6 | . . . . . . 6 Terrain Rammed . | . . . . . . . Walls Destroyed . | . . . . . . . Machines Disabled . | . . . . . . . Actions | -11 -10 -10 -10 -8 -8 -6 --------- Run | Yrd Mat Min Sub Rec Scr Fac Total 11663 | 121 3431 783 2932 859 767 2770 Wait 2890 | 11 2223 88 77 2 . 489 Move 7964 | 85 1143 679 2637 822 753 1845 Hop . | . . . . . . . Pick Up 87 | 9 10 2 21 14 4 27 Fast Attach 48 | 2 2 . 5 2 1 36 Attach 33 | 5 4 . 7 1 . 16 Detach 10 | 1 2 . 3 2 1 1 Swap 32 | . 6 . 4 2 3 17 Drop 79 | . 4 . 21 7 5 42 Fire 498 | 8 37 14 157 7 . 275 Melee 20 | . . . . . . 20 Ram . | . . . . . . . Kick 2 | . . . . . . 2 Crush . | . . . . . . . Escape Stasis . | . . . . . . . Rewire . | . . . . . . . Trap . | . . . . . . . Miscellaneous . | . . . . . . . Route ------- -11/Scrapyard -10/Materials (discovered 5 exits: *Mat x3 / *Min / *Sub) -10/Mines (discovered 4 exits: *Mat x2 / *Exi / *Sub) -10/Subcaves (discovered 3 exits: *Mat x2 / *Rec) -8/Recycling (discovered 2 exits: *Fac / *Scr) -8/Scraptown -6/Factory (discovered 3 exits: *Fac x2 / *Low) History --------- Turn | Location | Event 13 | -11/Scrapyard | Identified exit to Materials 13 | -11/Scrapyard | Discovered exit to Materials (range 15) 162 | -11/Scrapyard | Entered Materials 162 | -10/Materials | Evolved 1 slot: Utility x1 302 | -10/Materials | Build established: Hacker-Mutant 438 | -10/Materials | Identified exit to Subcaves 438 | -10/Materials | Discovered exit to Subcaves (range 9) 611 | -10/Materials | Identified exit to Materials 611 | -10/Materials | Discovered exit to Materials (range 16) 949 | -10/Materials | Discovered exit to Materials (range 8) 1137 | -10/Materials | Discovered exit to Materials (range 11) 1305 | -10/Materials | Identified exit to Mines 1305 | -10/Materials | Discovered exit to Mines (range 14) 4372 | -10/Materials | Entered Mines 4378 | -10/Mines | Met a Derelict bent on vengeance 4396 | -10/Mines | Assisted by bots powering up and referring to "LRC-V3" 4492 | -10/Mines | Discovered exit to Materials (range 9) 4493 | -10/Mines | Learned location of Storage (-8) 4507 | -10/Mines | Deemed a non-threat by the Exiles lab entrance 4507 | -10/Mines | Identified exit to Exiles 4507 | -10/Mines | Discovered exit to Exiles (range 6) 4739 | -10/Mines | Discovered exit to Materials (range 7) 5027 | -10/Mines | Learned 2 Materials zone layouts 5514 | -10/Mines | Discovered exit to Subcaves (range 9) 5590 | -10/Mines | Entered Subcaves 5590 | -10/Subcaves | Accompanied by 2 allies 5591 | -10/Subcaves | Approached by a straggling Scientist 5692 | -10/Subcaves | A swath of the cavern ceiling suddenly collapsed 6314 | -10/Subcaves | Shifting Twisted Machinery released Mak. Power Source 6321 | -10/Subcaves | Shifting Twisted Machinery released Sub. Monowheel 6506 | -10/Subcaves | Learned location of 1 exit from Materials 6514 | -10/Subcaves | Visited Clippyterm 6519 | -10/Subcaves | Learned location of Extension (-6) 6519 | -10/Subcaves | Learned Factory fabricator intel 6719 | -10/Subcaves | Ambushed by Subdwellers from Twisted Machinery 6841 | -10/Subcaves | Visited 4L-MR0's lab 6869 | -10/Subcaves | Found Cargo Legs 6871 | -10/Subcaves | Attached Cargo Legs, gained temporary slots: Utility x2 6926 | -10/Subcaves | Shifting Twisted Machinery released Sub. Power Source 6933 | -10/Subcaves | Identified exit to Materials 6933 | -10/Subcaves | Discovered exit to Materials (range 13) 6964 | -10/Subcaves | Shifting Twisted Machinery released Sub. Beam Cannon 7022 | -10/Subcaves | Identified exit to Recycling 7022 | -10/Subcaves | Discovered exit to Recycling (range 13) 7077 | -10/Subcaves | Discovered exit to Materials (range 8) 7132 | -10/Subcaves | A swath of the cavern ceiling suddenly collapsed 7231 | -10/Subcaves | Build established: Hacker-Skirmisher 7340 | -10/Subcaves | Disturbed a concealed Subdweller 7632 | -10/Subcaves | Shifting Twisted Machinery released Sub. Power Source 7634 | -10/Subcaves | Shifting Twisted Machinery released Sub. Power Source 7640 | -10/Subcaves | Build established: Hacker-Mutant 7818 | -10/Subcaves | Disturbed a concealed Subdweller 8475 | -10/Subcaves | Disturbed a concealed Subdweller 8691 | -10/Subcaves | Core integrity fell below 50% 9455 | -10/Subcaves | Found SUBCON Basin 9760 | -10/Subcaves | Build established: Hauler-Mutant 10404 | -10/Subcaves | Entered Recycling 10839 | -8/Recycling | Identified exit to Factory 10839 | -8/Recycling | Discovered exit to Factory (range 8) 12235 | -8/Recycling | Scanned before Scraplab entrance 12276 | -8/Recycling | Identified exit to Scraptown 12276 | -8/Recycling | Discovered exit to Scraptown (range 11) 12286 | -8/Recycling | Entered Scraplab 12726 | -8/Recycling | Build established: Hacker-Mutant 12913 | -8/Recycling | Entered Scraptown 13175 | -8/Scraptown | Heard Great Nut preacher, LISTEN AND RECITE! 13225 | -8/Scraptown | Visited CR-KLE's Repair Center 13253 | -8/Scraptown | Visited Awakened 13291 | -8/Scraptown | Visited Symbiants 13325 | -8/Scraptown | Visited SPCMW 13771 | -8/Scraptown | Discovered exit to Factory (range 13) 14298 | -8/Scraptown | CR-KLE repaired 5 parts 14428 | -8/Scraptown | Entered Factory 14428 | -6/Factory | Evolved 8 slots: Power x1, Propulsion x2, Utility x5 14429 | -6/Factory | Loaded intel: 6 fabricator locations 14526 | -6/Factory | Identified exit to Lower Caves 14526 | -6/Factory | Discovered exit to Lower Caves (range 7) 16623 | -6/Factory | Cargo convoy interrupted 17766 | -6/Factory | Identified exit to Factory 17766 | -6/Factory | Discovered exit to Factory (range 6) 18395 | -6/Factory | System corruption reached 10% 18438 | -6/Factory | Lost 4 parts (1p1n1u1w) 19458 | -6/Factory | Core integrity fell below 50% 19485 | -6/Factory | Lost 4 parts (1p1n1u1w) 19601 | -6/Factory | Lost 5 parts (1p2n1u1w) 20094 | -6/Factory | Build established: Scavenger-Mutant 20166 | -6/Factory | Discovered exit to Factory (range 16) 20262 | -6/Factory | Crushed by falling debris 20273 | -6/Factory | Crushed by falling debris 20273 | -6/Factory | Core integrity fell below 20% 20285 | -6/Factory | Crushed by falling debris 20289 | -6/Factory | Crushed by falling debris 20289 | -6/Factory | Smashed by cave-in Last Messages --------------- 20273_ The unstable cave ceiling collapses. 20273_ Crushed by falling debris. 20273_ Adv. Heat Sink destroyed. 20273_ System corrupted by crushing effect (+1). 20275_ System corrupted: Matter fused (-7). 20276_ U-05 Engineer builds a Wall. 20285_ The unstable cave ceiling collapses. 20285_ Crushed by falling debris. 20285_ Imp. Dynamic Insulation System destroyed. 20285_ Component Analysis Suite destroyed. 20285_ System corrupted by crushing effect (+3). 20285_ Mak. ECM Suite destroyed. 20285_ System corrupted by crushing effect (+1). 20288_ U-05 Engineer builds a Wall. 20289_ The unstable cave ceiling collapses. 20289_ Crushed by falling debris. 20289_ Carbon-fiber Leg destroyed. 20289_ System corrupted by crushing effect (+1). 20289_ Lgt. Angular Momentum Engine destroyed. 20289_ System corrupted by crushing effect (+2). Map ----- +----------------------------------------------------+ | #????????##^ ###########????# ## [ | | ##+#############= ###??????????## ## "" | | % [ ############## # """" | | % % # """" | | %% % + | | %% % % % # | | ############## ! # = | | # T########+#### #????????????## ######+## | | ##### ##########?????????????# # | | ????# "" """ #??????????????????????# # " | | ????#""" """ #??????????????????????# + ! " | | ????#"F """ #?????????############## # " | | ????#""" #?????????# # # " "" " | | ????#""" [#?????????# # # "R"" " | | ????#""" #?????????# #% # """" " | | ????# ! #?????????# # # | | ?????#########??????????# """ """ # ######### | | ????????????????????????# """ """ + #???????? | | ????????????????????????# """ """ # #???????? | | ????????????????????????# "" "" # #???????? | | ????????????????????????# "" "" # #???????? | | ????????????????????????# # ##??????? | | ????????????????????????# # ##??????? | | ???????????????????????## # #???????? | | ???????????????????????#;############# #???????? | | ????????????????????????#@#??????????# #???????? | | ????????????????????????###??????????# #???????? | | ????????????????????????###??????????? #???????? | | ?????????????????????????????????????? ???????? | | ??????????????????????????????????????] ???????? | | ?????????????????????????????????????? H ???????? | | ?????????????????????????????????????? * ????????? | | ?????????????????????????????????????????????????? | | ?????????????????????????????????????????????????? | | ?????????????????????????????????????????????????? | | ?????????????????????????????????????????????????? | | ?????????????????????????????????????????????????? | | ?????????????????????????????????????????????????? | | ?????????????????????????????????????????????????? | | ?????????????????????????????????????????????????? | | ?????????????????????????????????????????????????? | | ?????????????????????????????????????????????????? | | ?????????????????????????????????????????????????? | | ?????????????????????????????????????????????????? | | ?????????????????????????????????????????????????? | | ?????????????????????????????????????????????????? | | ?????????????????????????????????????????????????? | | ?????????????????????????????????????????????????? | | ?????????????????????????????????????????????????? | | ?????????????????????????????????????????????????? | +----------------------------------------------------+ Best States ------------- Heat Dissipation 65 Energy Generation 32 Energy Capacity 710 Matter Stores 300 Matter Capacity 300 Sight Range 16 Robot Scan Range 14 Terrain Scan Range 20 Terrain Scan Density 10 ECM Strength 2 EM Shielding 3 Armor Coverage 225 Resistance: KI 35 Resistance: TH 55 Resistance: EX 35 Resistance: EM 35 Resistance: I 35 Resistance: S 35 Resistance: P 35 Evasion (%) 55 Recoil Reduction 4 Offensive Hacking 20 Defensive Hacking 10 Authchip Count 3 Item Schematics ----------------- Katana | -8/Recycling | Hacked Arm. Medium Treads | -6/Factory | Hacked Adv. Signal Interpreter | -6/Factory | Hacked Robot Schematics ------------------ K-01 Serf | -8/Recycling | Hacked M-14 Sweeper | -6/Factory | Hacked Fabricated ------------ Nothing Repaired ---------- Nothing Studied --------- None Alien Tech Used ----------------- None Achievements -------------- None Challenges ------------ None Game ------ Seed TachyonNeutrinoSheargun Manual? 0 Play Time 01:21:45 Cumulative 270.4 hours Start 2026.01.09 @ 13:05:20 End 2026.01.09 @ 14:23:29 Sessions 1 Manual Loads 0 Difficulty Explorer Special Mode None Game No. 422 Rogue 0 Adventurer 0 Explorer 422 Win Type - Total 0 Types 0/0/0/0/0/0/0/0/0/0 Lore% 72 Gallery% 69 Achievement% 54 Wizard Run 0 Options --------- Layout 1 ASCII 0 Keyboard 0 Movement Mouse Keybinds 1 Fullscreen 1 Font 24/Smallcaps Map View 50x35 Zoom Use 0% Tactical HUD 1 Map Filters NONE Filters NONE Steam 1 RUN: a551d28f-0f41-4f09-8b25-12355fa8ff3c